bitfinex/quotes_SOLUSD_20230116
["timestamp","ask_amount","ask_price","bid_price","bid_amount"]
[1673831992980,57.05078,23.371,23.331,20.0]
[1673831993206,24.94078,23.37,23.332,20.0]
[1673831993523,52.11,23.369,23.333,21.46196354]
[1673831993839,32.11,23.369,23.333,21.46196354]
[1673831994038,4.94078,23.37,23.34,20.8]
[1673831994240,119.1525,23.372,23.342,20.0]
[1673831994451,119.1525,23.372,23.343,18.409]
[1673831994676,119.1525,23.372,23.343,39.87096354]
[1673831994868,32.09,23.38,23.35,20.81]
[1673831995085,20.0,23.381,23.351,25.029]
[1673831995295,20.0,23.381,23.353,20.0]
[1673831995504,20.0,23.381,23.354,42.137]
[1673831995728,20.0,23.381,23.354,63.59896354]
[1673831996046,20.0,23.381,23.355,21.46196354]
[1673831996239,32.09,23.38,23.356,37.0]
[1673831996673,32.09,23.38,23.357,21.46196354]
[1673831996871,32.09,23.38,23.358,37.0]
[1673831997293,20.0,23.379,23.358,37.0]
[1673831997501,32.1,23.378,23.358,37.0]
[1673831997721,20.0,23.379,23.358,37.0]
[1673831997945,32.1,23.378,23.358,20.0]
[1673831998246,20.0,23.377,23.355,20.0]
[1673831998441,32.1,23.376,23.355,20.0]
[1673831998650,32.1,23.376,23.356,21.46196354]
[1673831998862,20.0,23.377,23.357,20.0]
[1673831999386,20.0,23.377,23.358,21.46196354]
[1673831999596,20.0,23.377,23.359,20.0]
[1673831999827,20.0,23.377,23.36,17.0]
[1673832000038,20.0,23.377,23.36,42.92392708]
[1673832000222,20.0,23.377,23.361,20.0]
[1673832000675,20.0,23.381,23.361,20.0]
[1673832000885,20.0,23.383,23.362,21.46196354]
[1673832001191,20.0,23.383,23.363,20.0]
[1673832001628,20.0,23.383,23.364,21.46196354]
[1673832001819,20.0,23.383,23.365,37.0]
[1673832002363,20.0,23.383,23.366,21.46196354]
[1673832002672,20.0,23.383,23.367,37.0]
[1673832003072,20.0,23.383,23.368,21.46196354]
[1673832003280,20.0,23.383,23.369,37.0]
[1673832003706,20.0,23.383,23.369,21.46196354]
[1673832003918,32.09,23.382,23.34,20.8]
[1673832004128,20.0,23.381,23.34,20.8]
[1673832004345,49.09,23.38,23.341,59.28552408]
[1673832004675,20.81,23.37,23.341,26.14364621]
[1673832004866,54.05078,23.369,23.32,20.81]
[1673832005179,20.0,23.367,23.32,20.81]
[1673832005391,54.05078,23.366,23.32,20.81]
[1673832005703,20.81,23.36,23.32,20.81]
[1673832005916,54.06078,23.359,23.31,20.81]
[1673832006124,20.0,23.357,23.31,20.81]
[1673832006354,74.07078,23.356,23.31,20.81]
[1673832006553,4.94078,23.355,23.31,20.81]
[1673832006766,20.81,23.35,23.3,20.76]
[1673832006968,32.14,23.349,23.3,20.76]
[1673832007179,41.94078,23.348,23.301,20.0]
[1673832007392,37.08078,23.347,23.301,20.0]
[1673832007723,20.77,23.34,23.3,20.76]
[1673832008035,20.0,23.338,23.3,20.76]
[1673832008224,54.09078,23.337,23.29,129.0653933]
[1673832008435,20.81,23.33,23.29,129.0653933]
[1673832008641,37.10078,23.329,23.29,129.0653933]
[1673832008856,21.94078,23.328,23.29,129.0653933]
[1673832009111,20.0,23.326,23.291,20.0]
[1673832009301,32.17,23.325,23.291,20.0]
[1673832009715,20.0,23.326,23.291,20.0]
[1673832009922,32.17,23.325,23.291,20.0]
[1673832010129,20.0,23.324,23.291,20.0]
[1673832010331,20.0,23.324,23.29,108.2653933]
[1673832010543,53.63196354,23.323,23.29,108.2653933]
[1673832010858,17.0,23.322,23.29,108.2653933]
[1673832011064,32.17,23.321,23.29,129.0253933]
[1673832011275,20.0,23.32,23.291,20.0]
[1673832011912,20.0,23.32,23.29,129.0253933]
[1673832012125,20.0,23.32,23.29,108.2653933]
[1673832012755,20.0,23.322,23.291,20.0]
[1673832012989,32.17,23.325,23.301,20.0]
[1673832013212,32.16,23.33,23.302,20.0]
[1673832013419,32.15,23.337,23.302,20.0]
[1673832013722,32.15,23.337,23.303,17.0]
[1673832013913,20.0,23.33,23.304,20.0]
[1673832014119,20.0,23.33,23.305,17.0]
[1673832014333,20.0,23.33,23.306,20.0]
[1673832014550,32.16,23.329,23.307,17.0]
[1673832014766,32.17,23.326,23.305,17.0]
[1673832014975,20.0,23.33,23.305,17.0]
[1673832016250,32.16,23.335,23.306,20.0]
[1673832016438,148.8785,23.335,23.307,17.0]
[1673832016982,20.0,23.329,23.307,17.0]
[1673832017203,52.17,23.328,23.307,17.0]
[1673832017504,17.0,23.327,23.307,17.0]
[1673832017722,32.17,23.326,23.307,17.0]
[1673832017905,20.0,23.329,23.3,20.7]
[1673832018116,32.17,23.328,23.29,129.0753933]
[1673832018326,20.0,23.327,23.29,129.0753933]
[1673832018537,52.17,23.326,23.29,129.0753933]
[1673832018961,52.17,23.326,23.291,20.0]
[1673832019170,52.17,23.326,23.29,129.0753933]
[1673832019487,17.0,23.325,23.29,129.0753933]
[1673832019707,52.17,23.324,23.291,20.0]
[1673832019915,20.0,23.322,23.291,20.0]
[1673832020114,32.17,23.321,23.29,108.2653933]
[1673832020327,37.0,23.32,23.29,108.2653933]
[1673832020542,154.24288,23.319,23.29,108.2653933]
[1673832020748,41.94078,23.318,23.29,108.2653933]
[1673832020962,20.0,23.316,23.29,108.2653933]
[1673832021166,49.18,23.315,23.29,108.2653933]
[1673832021376,54.12078,23.315,23.29,108.2653933]
[1673832021605,4.94078,23.315,23.29,108.2653933]
[1673832021812,37.12078,23.315,23.29,108.2653933]
[1673832022019,20.0,23.314,23.29,108.2653933]
[1673832022233,32.19,23.313,23.291,17.0]
[1673832022445,20.0,23.314,23.29,108.2653933]
[1673832022758,32.19,23.313,23.29,108.2653933]
[1673832022971,20.0,23.312,23.29,108.2653933]
[1673832023705,20.0,23.312,23.291,20.0]
[1673832023906,20.0,23.312,23.292,17.0]
[1673832024129,20.0,23.312,23.293,20.0]
[1673832024342,20.0,23.312,23.294,17.0]
[1673832024875,20.0,23.312,23.295,20.0]
[1673832025094,20.0,23.312,23.296,17.0]
[1673832025488,40.0,23.318,23.296,17.0]
[1673832025489,20.0,23.318,23.296,17.0]
[1673832025720,20.0,23.318,23.297,20.0]
[1673832025908,20.0,23.318,23.298,17.0]
[1673832026327,20.0,23.318,23.299,20.0]
[1673832026541,20.0,23.318,23.3,17.0]
[1673832026765,20.0,23.318,23.301,20.0]
[1673832027080,20.0,23.318,23.29,129.0653933]
[1673832027295,52.18,23.318,23.291,20.0]
[1673832027692,52.18,23.318,23.29,108.2653933]
[1673832028124,20.0,23.317,23.29,108.2653933]
[1673832028960,69.18,23.316,23.29,108.2653933]
[1673832029170,20.0,23.316,23.29,108.2653933]
[1673832029386,20.0,23.316,23.291,45.44164454]
[1673832029709,20.0,23.316,23.292,20.0]
[1673832030317,20.0,23.316,23.29,108.2653933]
[1673832030740,20.0,23.314,23.29,108.2653933]
[1673832031389,17.0,23.313,23.29,108.2653933]
[1673832031789,20.0,23.312,23.29,108.2653933]
[1673832032000,17.0,23.311,23.29,108.2653933]
[1673832032312,20.0,23.312,23.291,20.0]
[1673832032953,17.0,23.311,23.29,108.2653933]
[1673832033160,20.0,23.31,23.29,108.2653933]
[1673832033367,32.19,23.309,23.29,108.2653933]
[1673832033800,20.0,23.312,23.29,108.2653933]
[1673832034230,20.0,23.312,23.291,20.0]
[1673832034836,20.0,23.312,23.29,108.2653933]
[1673832035052,41.43269646,23.311,23.29,108.2653933]
[1673832035263,32.19,23.31,23.29,108.2653933]
[1673832035697,20.0,23.308,23.29,108.2653933]
[1673832037058,20.0,23.312,23.29,108.2653933]
[1673832037272,20.0,23.317,23.29,129.0253933]
[1673832037475,20.0,23.317,23.291,86.90360808]
[1673832037921,20.0,23.317,23.292,21.46196354]
[1673832038111,52.18,23.316,23.293,20.0]
[1673832038321,24.94078,23.314,23.291,20.0]
[1673832038657,37.13078,23.313,23.29,108.2653933]
[1673832038852,20.0,23.312,23.29,108.2653933]
[1673832039059,41.94078,23.311,23.29,108.2653933]
[1673832039265,137.24078,23.31,23.29,108.2653933]
[1673832039480,21.94078,23.309,23.29,91.1002983]
[1673832039801,20.0,23.307,23.29,91.1002983]
[1673832040003,20.0,23.307,23.29,108.2742073]
[1673832040861,17.5,23.307,23.29,108.2742073]
[1673832041056,17.5,23.307,23.291,17.0]
[1673832041698,41.46196354,23.306,23.29,108.2742073]
[1673832041910,189.44078,23.305,23.26,20.62]
[1673832042128,174.24078,23.304,23.262,20.46196354]
[1673832042320,37.14078,23.303,23.27,20.68]
[1673832042531,20.0,23.305,23.27,20.68]
[1673832042849,17.5,23.307,23.28,20.81]
[1673832043389,20.0,23.315,23.281,21.46196354]
[1673832043575,52.18,23.318,23.281,21.46196354]
[1673832043787,111.397,23.32,23.29,20.81]
[1673832043998,32.15,23.337,23.3,20.81]
[1673832044218,52.15,23.338,23.301,20.0]
[1673832044422,21.46196354,23.337,23.301,20.0]
[1673832044631,20.0,23.33,23.302,17.0]
[1673832044841,32.16,23.329,23.303,20.0]
[1673832045060,32.16,23.329,23.304,17.0]
[1673832045264,58.56274354,23.329,23.304,17.0]
[1673832045474,58.56274354,23.329,23.297,45.83043121]
[1673832045692,20.0,23.327,23.298,17.0]
[1673832045891,54.11078,23.326,23.298,17.0]
[1673832046101,24.94078,23.325,23.283,21.46196354]
[1673832046314,186.41078,23.324,23.281,34.70013587]
[1673832046530,20.7,23.32,23.28,20.81]
[1673832046847,57.12078,23.319,23.282,67.29239475]
[1673832047064,20.0,23.319,23.282,67.29239475]
[1673832047272,20.0,23.317,23.283,21.46196354]
[1673832047463,32.18,23.316,23.283,21.46196354]
[1673832047795,20.0,23.314,23.278,21.46196354]
[1673832048004,52.19,23.313,23.281,21.46196354]
[1673832048409,24.94078,23.314,23.281,21.46196354]
[1673832048830,57.12078,23.314,23.281,21.46196354]
[1673832049280,24.94078,23.314,23.281,21.46196354]
[1673832049584,20.0,23.314,23.281,59.51609941]
[1673832049782,20.0,23.314,23.282,37.0]
[1673832050111,20.0,23.314,23.282,38.46196354]
[1673832050317,32.19,23.313,23.282,21.46196354]
[1673832050531,20.0,23.311,23.283,21.46196354]
[1673832050750,32.19,23.31,23.283,21.46196354]
[1673832051058,20.0,23.311,23.283,21.46196354]
[1673832051580,20.0,23.311,23.28,20.81]
[1673832051790,57.13078,23.31,23.27,20.7]
[1673832051982,57.13078,23.31,23.281,42.92392708]
[1673832052193,57.13078,23.31,23.281,21.46196354]
[1673832052405,17.0,23.309,23.271,38.05413587]
[1673832052725,20.0,23.307,23.272,21.46196354]
[1673832052939,49.2,23.306,23.272,21.46196354]
[1673832053148,32.2,23.306,23.273,38.05413587]
[1673832053477,32.2,23.306,23.274,21.46196354]
[1673832053681,20.0,23.305,23.274,21.46196354]
[1673832053880,52.2,23.304,23.274,21.46196354]
[1673832054204,4.94078,23.303,23.274,21.46196354]
[1673832054423,116.3952,23.303,23.275,49.47043121]
[1673832054620,72.2,23.302,23.275,87.52456708]
[1673832054833,52.2,23.302,23.276,21.46196354]
[1673832055028,32.2,23.302,23.276,21.46196354]
[1673832055240,109.7288,23.32,23.28,20.81]
[1673832055447,136.3952,23.319,23.28,20.81]
[1673832055682,32.18,23.316,23.281,20.0]
[1673832055868,41.46196354,23.318,23.29,20.81]
[1673832055869,52.18,23.318,23.29,20.81]
[1673832056077,20.0,23.318,23.291,20.0]
[1673832056315,32.17,23.323,23.291,20.0]
[1673832056524,20.0,23.329,23.293,20.0]
[1673832056525,20.0,23.325,23.293,20.0]
[1673832056714,20.0,23.325,23.294,37.0]
[1673832056926,20.0,23.325,23.294,58.46196354]
[1673832057139,21.46196354,23.333,23.294,58.46196354]
[1673832057140,32.16,23.332,23.3,20.81]
[1673832057354,32.15,23.337,23.301,37.0]
[1673832057563,32.16,23.335,23.302,20.0]
[1673832057770,32.16,23.333,23.304,20.0]
[1673832057980,32.16,23.335,23.303,79.51609941]
[1673832058184,20.0,23.34,23.303,58.05413587]
[1673832058185,32.16,23.333,23.303,58.05413587]
[1673832058397,21.46196354,23.332,23.304,38.05413587]
[1673832058732,72.16,23.331,23.303,20.0]
[1673832058923,72.16,23.331,23.298,20.0]
[1673832059135,184.0693,23.331,23.298,20.0]
[1673832059349,184.0693,23.331,23.299,17.0]
[1673832059771,184.0693,23.331,23.3,20.0]
[1673832059772,164.0693,23.331,23.3,20.0]
[1673832059987,131.9093,23.331,23.301,17.0]
[1673832060194,20.0,23.33,23.302,20.0]
[1673832060408,32.16,23.329,23.303,17.0]
[1673832060619,20.0,23.328,23.303,17.0]
[1673832060839,20.0,23.328,23.304,20.0]
[1673832061143,20.0,23.328,23.305,17.0]
[1673832061790,20.0,23.328,23.291,20.0]
[1673832062003,32.17,23.327,23.291,20.0]
[1673832062399,20.0,23.326,23.292,21.46196354]
[1673832062608,132.3305,23.326,23.292,21.46196354]
[1673832062839,32.17,23.325,23.291,20.0]
[1673832063052,20.0,23.324,23.291,20.0]
[1673832063358,20.0,23.324,23.291,21.46196354]
[1673832063575,20.0,23.324,23.29,20.76]
[1673832064184,20.0,23.324,23.291,20.0]
[1673832064395,20.0,23.322,23.291,20.0]
[1673832064627,20.0,23.322,23.284,20.0]
[1673832064628,49.17,23.321,23.284,20.0]
[1673832064813,20.81,23.32,23.284,20.0]
[1673832065026,164.48,23.319,23.27,20.76]
[1673832065236,132.3,23.317,23.27,20.76]
[1673832065470,20.81,23.31,23.262,88.10797775]
[1673832065781,132.3,23.308,23.27,21.46196354]
[1673832065981,184.8816,23.309,23.262,17.175583]
[1673832065982,20.8,23.3,23.262,17.175583]
[1673832066199,52.21,23.299,23.263,21.46196354]
[1673832066407,20.0,23.297,23.263,21.46196354]
[1673832066596,49.21,23.296,23.263,21.46196354]
[1673832066811,49.21,23.296,23.262,17.175583]
[1673832066812,20.8,23.29,23.262,17.175583]
[1673832067024,32.22,23.289,23.262,17.175583]
[1673832067243,20.0,23.288,23.262,17.175583]
[1673832067461,20.0,23.286,23.262,17.175583]
[1673832067677,32.22,23.285,23.262,17.175583]
[1673832067867,20.0,23.286,23.262,17.175583]
[1673832068072,32.22,23.285,23.262,17.175583]
[1673832068511,37.0,23.284,23.262,17.175583]
[1673832068702,32.23,23.283,23.262,17.175583]
[1673832068916,17.0,23.282,23.262,17.175583]
[1673832069231,20.81,23.28,23.23,20.81]
[1673832069450,69.23,23.279,23.23,20.81]
[1673832069759,20.8,23.27,23.23,20.81]
[1673832069965,32.25,23.269,23.23,17.202999]
[1673832070180,37.0,23.268,23.23,17.202999]
[1673832070391,32.25,23.267,23.23,17.202999]
[1673832070600,37.0,23.266,23.23,17.202999]
[1673832070811,32.25,23.265,23.23,17.202999]
[1673832071029,32.25,23.265,23.231,21.46196354]
[1673832071447,20.0,23.264,23.23,17.202999]
[1673832071672,32.26,23.263,23.23,17.202999]
[1673832071864,37.20078,23.263,23.23,17.202999]
[1673832072079,4.94078,23.262,23.23,17.202999]
[1673832072282,20.0,23.26,23.23,17.202999]
[1673832072492,49.26,23.259,23.23,17.202999]
[1673832072701,20.0,23.258,23.23,17.202999]
[1673832072935,49.26,23.257,23.23,17.202999]
[1673832073116,4.94078,23.259,23.23,37.882999]
[1673832073327,4.94078,23.259,23.232,20.0]
[1673832073537,20.0,23.26,23.232,20.0]
[1673832073744,20.0,23.264,23.232,41.46196354]
[1673832073967,52.25,23.266,23.24,20.76]
[1673832073968,32.25,23.266,23.24,20.76]
[1673832074190,32.24,23.273,23.241,37.0]
[1673832074383,20.0,23.272,23.241,37.0]
[1673832074593,32.24,23.271,23.241,37.0]
[1673832074806,141.4033,23.275,23.242,21.46196354]
[1673832075020,109.1633,23.275,23.25,20.81]
[1673832075227,20.0,23.274,23.251,20.0]
[1673832075435,20.0,23.274,23.252,17.0]
[1673832075657,20.0,23.278,23.253,20.0]
[1673832076293,20.0,23.278,23.242,20.0]
[1673832076602,32.24,23.277,23.243,20.0]
[1673832076798,53.70196354,23.277,23.241,20.0]
[1673832077003,24.94078,23.276,23.241,20.0]
[1673832077223,32.24,23.275,23.241,20.0]
[1673832077652,17.0,23.274,23.23,38.012999]
[1673832077874,32.24,23.273,23.23,38.012999]
[1673832078063,20.7,23.27,23.23,17.202999]
[1673832078277,20.0,23.268,23.23,17.202999]
[1673832078489,32.25,23.267,23.23,17.202999]
[1673832078714,130.9155,23.266,23.23,17.202999]
[1673832078907,49.25,23.265,23.23,17.202999]
[1673832079122,54.19078,23.265,23.23,17.202999]
[1673832079340,61.46196354,23.264,23.23,17.202999]
[1673832079547,20.81,23.26,23.23,17.202999]
[1673832079760,20.81,23.25,23.23,17.202999]
[1673832079985,32.27,23.249,23.204,21.19252073]
[1673832080282,37.21078,23.249,23.221,21.46196354]
[1673832080476,37.0,23.248,23.21,20.81]
[1673832080688,32.28,23.247,23.21,20.81]
[1673832080922,17.0,23.246,23.21,38.030192]
[1673832081117,32.28,23.245,23.21,38.030192]
[1673832081442,37.0,23.244,23.211,21.46196354]
[1673832081647,37.0,23.244,23.21,38.030192]
[1673832081648,32.28,23.243,23.21,38.030192]
[1673832081864,21.94078,23.242,23.211,21.46196354]
[1673832082070,32.29,23.241,23.21,38.030192]
[1673832082263,20.0,23.239,23.211,21.46196354]
[1673832082477,20.0,23.239,23.21,38.030192]
[1673832082478,20.0,23.238,23.21,17.220192]
[1673832082708,32.29,23.237,23.21,17.220192]
[1673832082912,37.23078,23.237,23.21,38.68215554]
[1673832083113,17.0,23.236,23.21,38.68215554]
[1673832083320,4.94078,23.237,23.21,59.48215554]
[1673832083528,20.0,23.239,23.21,17.220192]
[1673832083743,32.29,23.238,23.211,20.0]
[1673832083957,20.0,23.237,23.211,20.0]
[1673832084287,20.0,23.235,23.21,17.220192]
[1673832084598,32.3,23.234,23.21,17.220192]
[1673832084801,24.94078,23.235,23.21,17.220192]
[1673832085022,20.0,23.235,23.211,21.46196354]
[1673832085209,20.0,23.235,23.21,17.220192]
[1673832085419,20.0,23.235,23.211,21.46196354]
[1673832085630,20.0,23.235,23.212,20.0]
[1673832085835,20.0,23.237,23.212,20.0]
[1673832086070,32.27,23.249,23.22,20.81]
[1673832086263,20.0,23.242,23.221,20.0]
[1673832087094,20.0,23.242,23.212,21.46196354]
[1673832087325,58.69274354,23.241,23.21,17.220192]
[1673832087652,46.40274354,23.24,23.21,17.220192]
[1673832087838,37.23078,23.239,23.21,17.220192]
[1673832088055,24.94078,23.238,23.21,17.220192]
[1673832088265,74.23078,23.237,23.21,17.220192]
[1673832088795,57.23078,23.237,23.21,17.220192]
[1673832089008,24.94078,23.237,23.211,21.46196354]
[1673832089320,20.0,23.242,23.212,20.0]
[1673832089534,32.27,23.252,23.22,20.81]
[1673832089724,135.0799,23.253,23.221,17.0]
[1673832089935,172.29068,23.253,23.221,38.46196354]
[1673832090268,115.0799,23.253,23.23,20.81]
[1673832090582,115.0799,23.253,23.231,37.0]
[1673832090775,115.0799,23.253,23.231,58.46196354]
[1673832090984,147.3499,23.253,23.231,37.0]
[1673832091194,24.94078,23.252,23.231,20.0]
[1673832091425,20.81,23.24,23.181,72.02546933]
[1673832091615,189.53078,23.239,23.2,43.88]
[1673832091840,189.53078,23.239,23.204,21.46196354]
[1673832091841,4.94078,23.238,23.204,21.46196354]
[1673832092044,20.0,23.236,23.21,17.233343]
[1673832092255,32.29,23.235,23.21,17.233343]
[1673832092472,17.0,23.234,23.21,38.69530654]
[1673832092806,32.29,23.235,23.21,38.69530654]
[1673832093008,32.29,23.235,23.211,21.46196354]
[1673832093539,37.79689417,23.243,23.22,20.7]
[1673832093752,34.01394617,23.234,23.211,21.46196354]
[1673832093945,34.01394617,23.234,23.21,17.233343]
[1673832094168,20.0,23.232,23.21,17.233343]
[1673832094371,32.3,23.231,23.21,17.233343]
[1673832094581,20.0,23.232,23.21,38.69530654]
[1673832094796,32.28,23.248,23.21,59.50530654]
[1673832095207,20.0,23.247,23.211,41.46196354]
[1673832095543,32.28,23.246,23.22,20.7]
[1673832095738,20.0,23.249,23.221,37.0]
[1673832095950,115.0799,23.253,23.23,20.8]
[1673832096164,20.0,23.262,23.232,20.0]
[1673832096359,20.0,23.262,23.24,20.81]
[1673832096885,20.0,23.262,23.241,37.0]
[1673832097307,20.0,23.262,23.242,21.46196354]
[1673832097727,20.0,23.262,23.241,20.0]
[1673832097946,20.0,23.262,23.239,21.46196354]
[1673832098156,20.0,23.262,23.242,21.46196354]
[1673832098357,20.0,23.262,23.24,20.0]
[1673832098567,24.94078,23.262,23.24,20.0]
[1673832098772,24.94078,23.262,23.234,21.46196354]
[1673832098984,20.0,23.26,23.22,20.7]
[1673832099224,156.64578,23.259,23.224,21.46196354]
[1673832099403,119.445,23.259,23.23,20.7]
[1673832099833,119.445,23.259,23.24,20.76]
[1673832100044,32.25,23.267,23.24,20.76]
[1673832100254,151.685,23.272,23.241,38.46196354]
[1673832100448,151.685,23.272,23.25,20.8]
[1673832100666,140.90696354,23.272,23.251,20.0]
[1673832100879,37.18078,23.271,23.241,17.0]
[1673832101090,20.0,23.27,23.243,21.46196354]
[1673832101304,32.25,23.269,23.244,37.0]
[1673832101623,20.0,23.27,23.244,17.0]
[1673832101853,20.0,23.27,23.245,20.0]
[1673832102063,32.25,23.269,23.243,17.0]
[1673832102255,53.71196354,23.269,23.24,20.7]
[1673832102466,26.40274354,23.268,23.241,20.0]
[1673832102784,78.65274354,23.267,23.241,20.0]
[1673832102991,20.0,23.266,23.231,21.46196354]
[1673832103206,37.19078,23.265,23.231,21.46196354]
[1673832103409,21.94078,23.264,23.231,21.46196354]
[1673832103626,32.26,23.263,23.231,21.46196354]
[1673832103845,32.26,23.263,23.24,20.81]
[1673832104056,24.94078,23.264,23.24,20.81]
[1673832104277,24.94078,23.264,23.241,17.0]
[1673832104687,24.94078,23.264,23.24,20.81]
[1673832104896,32.26,23.263,23.24,20.81]
[1673832105105,20.0,23.262,23.24,20.81]
[1673832105312,52.26,23.261,23.23,20.81]
[1673832105741,17.0,23.26,23.23,20.81]
[1673832106045,164.56,23.259,23.22,20.7]
[1673832106269,206.02196354,23.259,23.21,38.043343]
[1673832106457,132.3,23.257,23.21,38.043343]
[1673832106667,132.3,23.255,23.21,38.043343]
[1673832106883,132.3,23.253,23.21,38.043343]
[1673832107104,132.3,23.251,23.21,38.043343]
[1673832107299,164.57,23.25,23.21,38.043343]
[1673832107512,186.51078,23.25,23.211,21.46196354]
[1673832107732,4.94078,23.249,23.21,38.043343]
[1673832107947,132.3,23.247,23.21,38.043343]
[1673832108158,52.28,23.246,23.21,38.043343]
[1673832108352,17.0,23.245,23.21,38.043343]
[1673832108566,132.3,23.243,23.21,17.233343]
[1673832108779,132.3,23.241,23.21,17.233343]
[1673832108992,20.0,23.238,23.208,20.0]
[1673832109326,54.23078,23.237,23.208,20.0]
[1673832109634,4.94078,23.236,23.208,20.0]
[1673832109817,32.29,23.235,23.209,17.0]
[1673832110156,20.0,23.234,23.208,20.0]
[1673832110349,32.3,23.233,23.208,20.0]
[1673832110765,37.24078,23.233,23.208,20.0]
[1673832110974,20.0,23.231,23.208,20.0]
[1673832111191,49.3,23.23,23.208,20.0]
[1673832111543,20.0,23.229,23.208,20.0]
[1673832111837,20.0,23.227,23.208,20.0]
[1673832112050,49.31,23.226,23.208,20.0]
[1673832112238,54.25078,23.226,23.208,20.0]
[1673832112453,4.94078,23.225,23.208,20.0]
[1673832112668,32.31,23.224,23.208,20.0]
[1673832112991,20.0,23.223,23.208,20.0]
[1673832114050,20.0,23.221,23.208,20.0]
[1673832114477,20.0,23.223,23.209,17.0]
[1673832114671,20.0,23.223,23.21,20.0]
[1673832114881,20.0,23.223,23.211,17.0]
[1673832115098,20.0,23.223,23.21,20.0]
[1673832119607,20.0,23.223,23.211,17.0]
[1673832120028,20.0,23.225,23.211,17.0]
[1673832120249,32.29,23.235,23.211,17.0]
[1673832120449,32.29,23.237,23.21,20.0]
[1673832120657,32.29,23.235,23.21,20.0]
[1673832120871,52.29,23.238,23.21,40.91]
[1673832121091,20.0,23.238,23.21,58.138313]
[1673832121296,52.29,23.238,23.21,58.138313]
[1673832121499,32.3,23.233,23.211,38.02581431]
[1673832121757,132.3,23.232,23.211,38.02581431]
[1673832121931,52.3,23.231,23.21,37.228313]
[1673832122134,57.24078,23.231,23.21,37.228313]
[1673832122349,21.94078,23.23,23.21,37.228313]
[1673832122554,32.3,23.229,23.21,37.228313]
[1673832122886,20.0,23.227,23.205,91.1002983]
[1673832123095,20.0,23.225,23.205,91.1002983]
[1673832123302,164.61,23.224,23.205,91.1002983]
[1673832123497,186.55078,23.224,23.205,91.1002983]
[1673832123710,4.94078,23.223,23.205,41.19957328]
[1673832123918,4.94078,23.223,23.181,43.88]
[1673832123919,69.31,23.222,23.181,43.88]
[1673832124143,4.94078,23.221,23.181,43.88]
[1673832124463,49.31,23.22,23.181,43.88]
[1673832124991,24.94078,23.219,23.181,43.88]
[1673832125175,181.62,23.218,23.181,43.88]
[1673832125393,186.56078,23.218,23.181,43.88]
[1673832125623,21.75218864,23.215,23.181,43.88]